bitfinex/quotes_ETHUSD_20241216
["timestamp","ask_amount","ask_price","bid_price","bid_amount"]
[1734388031627,0.85810811,4031.5,4030.5,0.55]
[1734388031826,2.11926244,4031.7,4030.5,0.55]
[1734388032028,2.14526767,4031.6,4030.5,0.55]
[1734388032269,2.11926244,4031.7,4030.5,0.55]
[1734388032456,1.61158733,4031.6,4030.5,0.55]
[1734388032770,0.7535,4031.6,4030.5,0.55]
[1734388033732,0.85817068,4031.5,4030.5,0.55]
[1734388033956,0.7535,4031.6,4030.5,0.55]
[1734388034266,0.85817719,4031.5,4030.5,0.55]
[1734388034465,0.7535,4031.6,4030.5,0.55]
[1734388034671,0.85827562,4031.5,4030.5,0.55]
[1734388034856,1.78582995,4031.6,4030.5,0.67363747]
[1734388035062,0.85826465,4031.5,4030.5,0.67363747]
[1734388035374,1.78582995,4031.6,4030.5,1.70288254]
[1734388035577,0.85837424,4031.5,4030.5,1.70288254]
[1734388035774,0.7535,4031.6,4030.5,1.70288254]
[1734388035932,0.85837326,4031.5,4030.5,1.70288254]
[1734388036135,1.78582995,4031.6,4030.5,0.67363747]
[1734388036446,3.17862946,4031.5,4030.5,0.67363747]
[1734388036778,0.8585198,4031.4,4030.5,0.67363747]
[1734388036975,1.03232995,4031.5,4030.5,0.67363747]
[1734388037280,2.1465512,4031.4,4030.5,1.70288254]
[1734388037588,0.00609933,4031.9,4030.8,1.02924507]
[1734388037767,2.0646599,4032.6,4031.3,0.55]
[1734388038080,2.0646599,4033.2,4031.9,0.55]
[1734388038387,2.61201471,4033.1,4032.1,0.55]
[1734388038540,0.858373,4033.0,4032.1,0.55]
[1734388038886,2.0646599,4033.5,4032.0,0.02479855]
[1734388039079,2.14430203,4033.4,4032.0,0.02479855]
[1734388039251,2.14430203,4033.3,4032.0,0.02479855]
[1734388039448,2.14430203,4033.2,4032.0,0.02479855]
[1734388039647,2.0646599,4033.6,4031.9,0.55]
[1734388039648,1.07215101,4033.1,4031.9,0.55]
[1734388039866,2.0646599,4033.6,4031.9,0.55]
[1734388040083,2.14328115,4033.5,4031.9,0.55]
[1734388040376,2.14328115,4033.4,4031.9,0.55]
[1734388040533,2.14328115,4033.3,4031.9,0.55]
[1734388040733,0.7995,4033.1,4031.9,0.67270428]
[1734388040976,0.29427812,4033.0,4031.9,0.67270428]
[1734388041290,0.7995,4033.1,4031.9,0.67270428]
[1734388045667,0.7995,4033.1,4031.9,0.98343137]
[1734388048208,0.7995,4033.1,4032.2,0.8046]
[1734388048498,0.7995,4033.1,4032.3,0.55]
[1734388050389,0.7995,4033.1,4032.3,3.55]
[1734388051589,0.7995,4033.1,4032.3,0.55]
[1734388051789,0.7995,4033.1,4032.3,3.55]
[1734388052402,0.7995,4033.1,4032.3,0.55]
[1734388052777,0.7995,4033.1,4032.3,3.55]
[1734388052979,0.7806,4033.6,4032.3,3.55]
[1734388053175,1.11732373,4033.6,4032.3,3.55]
[1734388053504,1.11732373,4033.6,4032.3,0.55]
[1734388053908,1.11732373,4033.6,4032.5,0.55]
[1734388056376,0.7806,4033.6,4032.5,0.55]
[1734388065526,0.7806,4033.6,4032.4,3.55]
[1734388065682,0.7806,4033.6,4032.6,0.55]
[1734388067416,0.7806,4033.6,4032.8,0.55]
[1734388068882,1.03454948,4033.8,4032.8,3.55]
[1734388069087,0.8108,4033.9,4032.9,0.7557]
[1734388069293,1.84534948,4034.2,4033.1,0.7557]
[1734388069435,0.85509217,4034.1,4033.2,0.55]
[1734388069786,0.33974373,4034.1,4033.2,0.55]
[1734388072484,0.8108,4034.2,4033.2,0.55]
[1734388072727,0.85530308,4034.1,4033.2,0.55]
[1734388073523,1.84534948,4034.2,4033.2,0.55]
[1734388073673,0.85543981,4034.1,4033.2,0.55]
[1734388076487,3.17388201,4034.1,4033.2,0.55]
[1734388076686,0.85543981,4034.0,4033.2,0.55]
[1734388076915,1.03454948,4034.1,4033.1,0.7557]
[1734388077228,3.1743689,4034.1,4033.4,0.55]
[1734388077375,1.03454948,4034.4,4033.6,0.55]
[1734388077575,1.03454948,4034.5,4033.6,0.55]
[1734388077823,3.17438411,4034.5,4033.6,0.55]
[1734388078117,0.85593345,4034.4,4033.6,0.55]
[1734388078423,1.03454948,4034.6,4033.6,0.55]
[1734388078716,3.43321486,4034.5,4033.6,0.55]
[1734388078946,2.14000165,4034.4,4033.6,0.55]
[1734388080547,3.17455113,4034.4,4033.6,0.55]
[1734388080836,3.17455113,4034.4,4033.6,0.3012]
[1734388081018,0.18516974,4034.3,4033.6,0.3012]
[1734388081220,0.18516974,4034.2,4033.6,0.3012]
[1734388081441,0.18516974,4034.1,4033.6,0.3012]
[1734388081595,0.18516974,4034.0,4033.6,0.3012]
[1734388081935,0.18516974,4033.9,4033.6,0.3012]
[1734388082139,1.29321321,4034.5,4033.4,0.758]
[1734388082303,3.64559417,4034.4,4033.4,0.758]
[1734388082506,2.32651458,4034.3,4033.4,0.758]
[1734388082720,0.18513427,4034.2,4033.4,0.758]
[1734388082932,0.18513427,4034.1,4033.4,0.7645]
[1734388083239,0.18513427,4034.0,4033.7,0.55]
[1734388083546,1.31907959,4034.4,4033.7,0.55]
[1734388083836,3.36245979,4034.3,4033.6,0.7645]
[1734388084039,1.04221008,4034.2,4033.6,0.7645]
[1734388084350,0.18507659,4034.1,4033.6,0.7645]
[1734388084647,1.03454948,4034.4,4033.6,0.7645]
[1734388084824,1.04205254,4034.3,4033.6,0.7645]
[1734388085141,1.04205254,4034.2,4033.6,0.7645]
[1734388085342,1.03454948,4034.4,4033.6,0.7645]
[1734388085658,1.04203423,4034.3,4033.6,0.7645]
[1734388085826,0.18504588,4034.2,4033.6,0.7645]
[1734388086005,0.18504588,4034.1,4033.6,0.7645]
[1734388086336,1.46463566,4034.4,4033.6,0.7645]
[1734388086539,1.04190095,4034.3,4033.6,0.7645]
[1734388086739,0.18501866,4034.2,4033.6,0.7645]
[1734388086940,0.18501866,4034.1,4033.6,0.7645]
[1734388087128,1.46463566,4034.4,4033.6,0.7645]
[1734388087326,1.34349197,4034.3,4033.6,0.7645]
[1734388087501,0.18501866,4034.2,4033.6,0.7645]
[1734388087704,0.18501866,4034.1,4033.6,0.7645]
[1734388087911,0.30167235,4034.3,4033.6,0.7645]
[1734388088230,0.18501084,4034.2,4033.6,0.7645]
[1734388088404,0.18501084,4034.1,4033.6,0.7645]
[1734388088599,0.30167235,4034.3,4033.6,0.7645]
[1734388088907,0.18501017,4034.2,4033.6,0.7645]
[1734388089108,0.18501017,4034.1,4033.6,0.7645]
[1734388089341,1.03454948,4034.5,4033.6,0.7645]
[1734388089547,0.18501107,4034.4,4033.6,0.7645]
[1734388089751,0.18501107,4034.3,4033.6,0.7645]
[1734388089906,0.18501107,4034.2,4033.6,0.7645]
[1734388090106,0.18501107,4034.1,4033.6,0.7645]
[1734388090303,1.03454948,4034.5,4033.8,0.7645]
[1734388090544,1.03454948,4034.8,4033.8,0.7645]
[1734388090752,0.85646325,4034.7,4034.0,0.7645]
[1734388090905,2.8167599,4035.3,4034.1,0.55]
[1734388090906,1.03454948,4035.0,4034.1,0.55]
[1734388091108,0.8562491,4034.9,4034.2,0.7645]
[1734388091309,0.33387373,4035.0,4034.2,0.7645]
[1734388092456,1.03454948,4035.2,4034.4,0.7645]
[1734388092622,1.03454948,4036.0,4035.2,4.3145]
[1734388092827,1.03454948,4036.5,4035.9,1.05923835]
[1734388093044,3.17348047,4036.5,4036.4,1.05923835]
[1734388093245,0.85553026,4036.5,4036.4,1.05923835]
[1734388093573,0.7821,4036.9,4036.4,1.05923835]
[1734388093749,0.18166495,4036.8,4035.8,0.7645]
[1734388094058,0.18166495,4036.8,4035.8,1.11156876]
[1734388094757,1.81664948,4037.2,4035.8,1.11156876]
[1734388094758,0.7821,4037.2,4035.8,1.11156876]
[1734388094925,0.85388974,4037.1,4036.9,1.05923835]
[1734388095273,0.7821,4037.2,4036.9,0.02828226]
[1734388095426,1.55208786,4037.6,4036.9,0.02828226]
[1734388095427,0.7821,4037.5,4036.9,0.02828226]
[1734388095764,0.7821,4037.5,4037.4,1.05923835]
[1734388095972,0.7821,4037.9,4037.4,1.05923835]
[1734388096175,0.18166495,4037.8,4037.4,1.05923835]
[1734388096477,0.7821,4037.9,4037.7,1.05923835]
[1734388103807,0.7821,4038.8,4037.7,1.05923835]
[1734388105212,0.7821,4038.8,4038.0,1.05923835]
[1734388107698,0.7821,4038.8,4037.3,0.34706876]
[1734388114404,0.7821,4038.8,4036.5,0.75]
[1734388114405,0.25,4038.5,4036.5,0.75]
[1734388114610,0.25,4038.5,4034.9,3.0]
[1734388114611,0.776,4038.2,4036.2,0.75]
[1734388116609,0.776,4038.2,4036.2,1.08676876]
[1734388116827,0.776,4038.2,4036.2,1.41301721]
[1734388128980,0.811,4038.0,4036.2,1.41301721]
[1734388131385,0.811,4038.0,4036.3,1.23779052]
[1734388131551,0.811,4038.0,4036.5,0.55]
[1734388131757,0.811,4038.0,4036.6,0.32624845]
[1734388132284,0.811,4038.0,4036.7,0.55]
[1734388134838,0.85392981,4037.9,4036.7,3.0]
[1734388135184,0.26994793,4037.8,4036.6,0.55]
[1734388135349,0.26994793,4037.8,4036.7,3.0]
[1734388135864,0.85468446,4037.7,4036.7,3.0]
[1734388136252,0.26994793,4037.8,4036.6,0.55]
[1734388136871,2.13825985,4037.7,4036.7,3.0]
[1734388137200,0.85530394,4037.6,4036.7,3.0]
[1734388137382,1.03454948,4037.7,4036.6,0.55]
[1734388137588,3.98554398,4037.6,4036.6,0.55]
[1734388137790,2.1399945,4037.5,4036.7,3.0]
[1734388138400,1.84554948,4037.6,4036.7,3.0]
[1734388138572,1.84554948,4037.6,4036.6,0.55]
[1734388138573,1.03454948,4037.4,4036.6,0.55]
[1734388138769,3.17720158,4037.3,4036.6,0.55]
[1734388139087,0.85706084,4037.2,4036.6,0.55]
[1734388139287,1.03454948,4037.4,4036.6,0.55]
[1734388139458,0.85705834,4037.3,4036.6,0.55]
[1734388139800,0.85717476,4037.2,4036.7,0.66301721]
[1734388140102,1.03454948,4037.4,4036.7,0.66301721]
[1734388140273,2.14293236,4037.3,4036.7,0.66301721]
[1734388140490,0.85717242,4037.2,4036.7,0.66301721]
[1734388140671,1.03454948,4037.4,4036.7,0.66301721]
[1734388140899,2.14328986,4037.3,4036.7,0.66301721]
[1734388141106,1.03454948,4037.4,4036.7,0.66301721]
[1734388141107,0.85731594,4037.2,4036.7,0.66301721]
[1734388141405,1.03454948,4037.4,4036.7,0.66301721]
[1734388141702,2.14341035,4037.3,4036.7,0.66301721]
[1734388141906,0.85736414,4037.2,4036.7,0.66301721]
[1734388142103,1.03454948,4037.4,4036.7,0.66301721]
[1734388142400,2.14344391,4037.3,4036.7,0.66301721]
[1734388142698,1.03454948,4037.5,4036.7,0.66301721]
[1734388142899,0.811,4037.6,4036.7,0.66301721]
[1734388142900,0.811,4037.6,4036.8,0.7892]
[1734388143102,2.14324873,4037.5,4036.8,1.12596876]
[1734388143285,1.84554948,4037.6,4036.8,1.12596876]
[1734388143492,0.8572987,4037.5,4036.8,1.12596876]
[1734388143809,0.811,4037.6,4036.8,1.12596876]
[1734388144012,0.85728477,4037.5,4036.8,1.12596876]
[1734388144176,1.84554948,4037.6,4036.8,1.12596876]
[1734388144501,0.85727212,4037.5,4036.8,1.12596876]
[1734388144702,1.84554948,4037.6,4036.8,1.12596876]
[1734388145007,0.85725438,4037.5,4036.8,1.12596876]
[1734388145161,1.84554948,4037.6,4036.9,0.33676876]
[1734388145365,0.85724349,4037.5,4036.9,0.33676876]
[1734388145565,1.84554948,4037.6,4036.9,0.33676876]
[1734388145896,0.85724725,4037.5,4036.9,0.32970532]
[1734388146112,0.811,4037.6,4036.9,0.32970532]
[1734388150563,0.18506695,4037.5,4036.9,0.32970532]
[1734388150870,0.811,4037.6,4036.9,0.32970532]
[1734388151069,0.18507327,4037.5,4036.9,0.32970532]
[1734388151295,0.811,4037.6,4036.9,0.32970532]
[1734388151499,0.18507994,4037.5,4036.9,0.32970532]
[1734388151838,1.78484948,4037.9,4036.9,0.32970532]
[1734388151961,1.04202557,4037.8,4036.9,0.32970532]
[1734388152166,0.18507094,4037.7,4036.9,0.32970532]
[1734388152364,0.18507094,4037.6,4036.9,0.32970532]
[1734388152564,0.7503,4037.9,4036.9,0.32970532]
[1734388152806,0.18506318,4037.8,4037.1,0.8165]
[1734388153006,1.83614948,4038.2,4037.2,0.88618014]
[1734388153211,2.32712756,4038.1,4037.2,0.88618014]
[1734388153384,0.18505085,4038.0,4037.2,0.88618014]
[1734388153584,0.18505085,4037.9,4037.2,0.88618014]
[1734388153894,0.8016,4038.2,4037.2,0.88618014]
[1734388154096,0.18502308,4038.1,4037.2,0.88618014]
[1734388154277,0.18502308,4038.0,4037.2,0.88618014]
[1734388154613,0.18502308,4037.9,4037.4,0.55]
[1734388154779,1.03454948,4038.3,4037.4,0.88618014]
[1734388154971,1.04155495,4038.2,4037.4,0.88618014]
[1734388155175,0.18501211,4038.1,4037.4,0.55]
[1734388155380,0.18501211,4038.0,4037.4,0.55]
[1734388155594,0.25866373,4038.3,4037.4,0.55]
[1734388155795,2.14962626,4038.3,4037.4,0.55]
[1734388156132,1.04141684,4038.2,4037.4,0.55]
[1734388156314,0.18500379,4038.1,4037.4,0.55]
[1734388156484,0.18500379,4038.0,4037.3,0.8157]
[1734388156685,0.8085,4038.1,4037.4,0.55]
[1734388156925,0.18499468,4038.0,4037.4,0.55]
[1734388157227,0.18499468,4037.9,4037.4,0.55]
[1734388157432,0.8085,4038.1,4037.4,0.55]
[1734388157586,0.18498349,4038.0,4037.4,0.55]
[1734388157792,0.18498349,4037.9,4037.4,0.55]
[1734388157993,0.8085,4038.1,4037.4,0.55]
[1734388158182,0.18499384,4038.0,4037.4,0.55]
[1734388158382,0.18499384,4037.9,4037.4,0.55]
[1734388158588,1.84304948,4038.4,4037.4,0.55]
[1734388158789,1.04112638,4038.3,4037.4,3.88618014]
[1734388159099,0.18499562,4038.2,4037.4,0.88618014]
[1734388159347,0.18499562,4038.1,4037.5,0.8157]
[1734388159485,0.18499562,4038.0,4037.5,0.8157]
[1734388159691,1.03454948,4038.5,4037.5,0.8157]
[1734388159893,0.52451451,4038.4,4037.5,0.8157]
[1734388160094,1.03454948,4038.5,4037.5,0.8157]
[1734388160095,0.18500078,4038.3,4037.6,0.55]
[1734388160415,0.8085,4038.7,4037.8,0.55]
[1734388160626,0.18496185,4038.6,4037.9,0.33618014]
[1734388160809,0.18496185,4038.5,4038.1,0.8157]
[1734388161013,1.84304948,4039.0,4038.2,0.55]
[1734388161014,0.8085,4039.0,4038.2,0.55]
[1734388161211,0.18494819,4038.9,4038.2,0.88618014]
[1734388161414,0.18494819,4038.8,4038.2,0.88618014]
[1734388161603,0.18494819,4038.7,4038.2,0.88618014]
[1734388161801,0.8085,4039.0,4038.2,0.88618014]
[1734388162028,0.18489983,4038.9,4038.2,0.88618014]
[1734388162243,0.18489983,4038.8,4038.2,0.88618014]
[1734388162450,0.8085,4039.0,4038.2,0.88618014]
[1734388162746,0.18481474,4038.9,4038.2,0.88618014]
[1734388162949,0.8085,4039.0,4038.2,1.01053102]
[1734388163134,0.18481417,4038.9,4038.2,1.01053102]
[1734388163304,0.8085,4039.0,4038.2,1.01053102]
[1734388163504,0.18476633,4038.9,4038.2,1.01053102]
[1734388163701,0.8085,4039.0,4038.2,1.01053102]
[1734388163909,0.18475905,4038.9,4038.2,1.01053102]
[1734388164416,0.8085,4039.0,4038.2,0.88618014]
[1734388164740,0.1847143,4038.9,4038.2,0.88618014]
[1734388165049,0.1847143,4038.9,4038.2,0.55]
[1734388167552,0.8085,4039.0,4038.2,0.55]
[1734388168047,0.8085,4039.4,4038.2,0.55]
[1734388168215,0.18464675,4039.3,4038.2,0.55]
[1734388168559,0.18464675,4039.2,4038.2,0.55]
[1734388168722,0.18464675,4039.1,4038.2,0.88618014]
[1734388168912,0.18464675,4039.0,4038.2,0.88618014]
[1734388169252,0.8085,4039.4,4038.2,0.88618014]
[1734388169404,0.3689282,4039.3,4038.2,0.88618014]
[1734388169605,0.18462325,4039.2,4038.2,0.88618014]
[1734388169926,0.18462325,4039.1,4038.2,0.88618014]
[1734388170235,0.18462325,4039.0,4038.2,0.88618014]
[1734388170436,0.18430495,4039.3,4038.2,0.88618014]
[1734388170654,0.1846294,4039.2,4038.2,0.88618014]
[1734388170855,0.1846294,4039.1,4038.2,0.88618014]
[1734388171152,0.1846294,4039.0,4038.3,0.7881]
[1734388171304,0.18430495,4039.3,4038.3,0.7881]
[1734388171509,0.18461886,4039.2,4038.3,0.7881]
[1734388171709,0.18461886,4039.1,4038.3,0.7881]
[1734388171959,0.18461886,4039.3,4038.3,0.7881]
[1734388172247,0.18463974,4039.2,4038.3,0.7881]
[1734388172409,0.18463974,4039.1,4038.3,0.7881]
[1734388172605,0.18463974,4039.0,4038.3,0.7881]
[1734388172857,0.8085,4039.4,4038.3,0.7881]
[1734388173072,0.36895939,4039.3,4038.3,0.7881]
[1734388173268,0.18465444,4039.2,4038.3,0.7881]
[1734388173420,0.18465444,4039.1,4038.3,0.7881]
[1734388173622,0.18465444,4039.0,4038.3,0.7881]
[1734388173823,0.18430495,4039.3,4038.3,0.7881]
[1734388174060,0.18466323,4039.2,4038.3,0.7881]
[1734388174267,0.18466323,4039.1,4038.3,0.7881]
[1734388174426,0.18466323,4039.0,4038.3,0.7881]
[1734388174624,0.18430495,4039.3,4038.3,0.7881]
[1734388174867,0.18467571,4039.2,4038.3,0.7881]
[1734388175174,0.18467571,4039.1,4038.3,0.7881]
[1734388175336,0.18467678,4039.2,4038.3,0.7881]
[1734388175523,0.18467678,4039.1,4038.3,0.7881]
[1734388175861,0.18467678,4039.0,4038.3,0.7881]
[1734388176062,0.18467678,4038.9,4038.3,0.7881]
[1734388176275,0.18430495,4039.3,4038.3,0.7881]
[1734388176469,0.3874524,4039.2,4038.3,0.7881]
[1734388176765,0.18471696,4039.1,4038.3,0.7881]
[1734388176960,0.18471696,4039.0,4038.3,0.7881]
[1734388177168,0.18471696,4038.9,4038.3,0.7881]
[1734388177464,0.20273544,4039.2,4038.3,0.7881]
[1734388177627,0.18474588,4039.1,4038.3,0.7881]
[1734388177964,0.98974588,4039.0,4038.0,0.7916]
[1734388178162,0.18474588,4038.9,4038.0,0.7916]
[1734388178370,0.18474588,4038.8,4038.0,0.7916]
[1734388178549,0.805,4039.0,4038.0,0.7916]
[1734388178550,0.18474588,4038.7,4038.0,0.7916]
[1734388178735,0.18474588,4038.6,4038.0,0.7916]
[1734388178935,0.805,4039.0,4038.0,1.45402859]
[1734388179143,0.18479413,4038.9,4038.2,0.7916]
[1734388179363,0.20273544,4039.2,4038.2,0.7916]
[1734388179364,0.18479413,4038.8,4038.2,0.7916]
[1734388179551,0.18479413,4038.7,4038.2,0.7916]
[1734388179862,0.20273544,4039.2,4038.2,0.7916]
[1734388180077,0.38905548,4039.1,4038.2,0.7916]
[1734388180250,0.18482699,4039.0,4038.2,0.7916]
[1734388180455,0.18482699,4038.9,4038.2,0.7916]
[1734388180764,0.18482699,4038.8,4038.2,0.7916]
[1734388180970,0.18482699,4038.7,4038.2,0.7916]
[1734388181167,0.18482699,4038.6,4038.2,0.7916]
[1734388181369,0.20422849,4039.1,4038.2,0.7916]
[1734388181566,0.38926264,4039.0,4038.2,0.7916]
[1734388181773,0.18488484,4038.9,4038.2,0.7916]
[1734388182074,0.18488484,4038.8,4038.2,0.7916]
[1734388182274,0.18488484,4038.7,4038.2,0.7916]
[1734388182573,0.18488484,4038.6,4038.2,0.7916]
[1734388182881,0.805,4039.3,4038.2,0.7916]
[1734388182882,1.83954948,4039.3,4038.2,0.7916]
[1734388183031,1.37889704,4039.2,4038.2,0.7916]
[1734388183224,0.18496664,4039.1,4038.2,0.7916]
[1734388183429,0.18496664,4039.0,4038.2,0.7916]
[1734388183639,0.18496664,4038.9,4038.2,0.7916]
[1734388183845,0.18496664,4038.8,4038.2,0.7916]
[1734388184055,0.18496664,4038.7,4038.2,0.7916]
[1734388184332,0.18496664,4038.6,4038.2,0.7916]
[1734388184530,0.33916373,4039.2,4038.2,0.7916]
[1734388184770,0.40289913,4039.1,4038.2,0.7916]
[1734388184954,0.18502781,4039.0,4038.2,0.7916]
[1734388185267,0.1850282,4038.9,4038.3,0.55]
[1734388185425,0.21787132,4039.1,4038.3,0.55]
[1734388185648,0.18505362,4039.0,4038.3,0.55]
[1734388185987,0.21787132,4039.1,4038.3,0.55]
[1734388185988,0.18505362,4038.9,4038.3,0.55]
[1734388186193,0.18505362,4038.8,4038.3,0.55]
[1734388186402,0.21787132,4039.1,4038.3,0.55]
[1734388186403,0.18505362,4038.7,4038.3,0.55]
[1734388186561,0.18505362,4038.6,4038.3,0.55]
[1734388186748,0.18505362,4038.5,4038.3,0.55]
[1734388186953,0.18505362,4038.4,4038.3,0.55]
[1734388187148,0.21787132,4039.1,4038.3,0.55]
[1734388187367,1.24610102,4039.0,4038.3,0.55]
[1734388187576,0.1851038,4038.9,4038.3,0.55]
[1734388187900,0.1851038,4038.8,4038.3,0.55]
[1734388188064,0.1851038,4038.7,4038.3,0.55]
[1734388188274,0.1851038,4038.6,4038.3,0.55]
[1734388188459,0.1851038,4038.5,4038.3,0.55]
[1734388188653,0.1851038,4038.4,4038.3,0.55]
[1734388191611,0.18528878,4038.4,4038.3,0.55]
[1734388194792,0.18528061,4038.4,4038.3,0.55]
[1734388195283,0.18528055,4038.4,4038.3,0.55]
[1734388198313,0.18528373,4038.4,4038.3,0.55]
[1734388203872,0.1853286,4038.4,4038.3,0.55]
[1734388205965,0.1853286,4038.4,4030.5,11.0637412]
[1734388205966,2.32985817,4038.4,4037.9,3.0]
[1734388206171,1.03454948,4038.5,4037.5,1.82634507]
[1734388206172,1.03454948,4038.2,4037.5,1.82634507]
[1734388206376,3.36440765,4038.1,4037.5,0.7971]
[1734388206573,1.04312144,4038.0,4037.5,0.7971]
[1734388206775,1.03454948,4038.1,4037.5,0.7971]
[1734388207076,2.33019761,4038.0,4037.5,0.7971]
[1734388207306,0.18533636,4037.9,4037.5,0.7971]
[1734388207620,1.82534948,4038.2,4037.5,0.7971]
[1734388207917,2.71669693,4038.1,4037.5,0.7971]
[1734388208242,1.04309131,4038.0,4037.5,0.7971]
[1734388208423,0.18529336,4037.9,4037.5,0.55]
[1734388208712,0.18529336,4037.8,4037.5,0.55]
[1734388208917,0.18529336,4037.7,4037.5,0.55]
[1734388209209,0.18527394,4037.6,4037.5,0.55]
[1734388209369,1.03454948,4037.9,4037.4,0.33618014]
[1734388209574,0.7908,4037.6,4036.9,1.12334845]
[1734388209815,1.04265583,4037.5,4037.0,0.33618014]
[1734388210029,0.7908,4037.6,4037.0,0.33618014]
[1734388210187,0.85745933,4037.5,4037.0,0.33618014]
[1734388210373,1.03454948,4037.7,4037.0,0.66242859]
[1734388210573,0.8574537,4037.6,4037.0,0.66242859]
[1734388210838,1.60849466,4037.7,4037.1,0.55]
[1734388211046,0.85713851,4037.6,4037.1,0.55]
[1734388211738,0.57394518,4037.7,4037.1,0.55]
[1734388211942,1.04194788,4037.6,4037.1,0.55]
[1734388212142,0.42331487,4037.5,4037.1,0.55]
[1734388212297,1.21959953,4037.6,4037.1,0.55]
[1734388212501,0.18505005,4037.6,4037.1,0.55]
[1734388212701,0.85664449,4037.5,4037.1,0.55]
[1734388212915,0.18505005,4037.6,4037.1,0.55]
[1734388213507,0.8054,4037.4,4037.1,0.55]
[1734388214418,1.06529447,4037.4,4037.1,0.55]
[1734388216253,1.06529447,4037.4,4036.7,0.55]
[1734388216435,0.8054,4037.4,4036.7,0.55]
[1734388217007,0.85581143,4037.3,4036.7,0.55]
[1734388217444,0.8054,4037.4,4036.7,0.55]
[1734388228646,0.18457391,4037.3,4036.7,0.55]
[1734388231462,0.18461942,4037.2,4036.7,0.55]
[1734388231664,0.8054,4037.4,4036.7,0.55]
[1734388231867,0.18465489,4037.3,4036.7,0.55]
[1734388232488,0.18465489,4037.2,4036.7,0.55]
[1734388232693,0.8054,4037.4,4036.7,0.55]
[1734388232967,0.1847071,4037.3,4036.7,0.55]
[1734388233200,0.1847071,4037.2,4036.7,0.55]
[1734388233402,0.1847071,4037.1,4036.7,0.55]
[1734388233704,0.8054,4037.4,4036.7,0.55]
[1734388233917,0.18477416,4037.3,4036.7,0.55]
[1734388234081,0.8054,4037.4,4036.7,0.55]
[1734388234082,0.18477416,4037.2,4036.7,0.55]
[1734388234282,0.18477416,4037.1,4036.7,0.55]
[1734388234485,0.18477416,4037.0,4036.7,0.55]
[1734388234680,0.8054,4037.4,4036.7,0.55]
[1734388234910,0.1848534,4037.3,4036.7,0.55]
[1734388235211,0.1848533,4037.2,4036.7,0.55]
[1734388235511,0.1848533,4037.1,4036.7,0.55]
[1734388235804,0.1848533,4037.0,4036.7,0.55]
[1734388236012,1.1238546,4037.8,4036.8,0.814]
[1734388236175,0.1849502,4037.7,4036.9,0.55]
[1734388236375,0.1849502,4037.6,4036.9,0.55]
[1734388236575,0.1849502,4037.5,4036.9,0.55]
[1734388236875,0.1849502,4037.4,4036.9,0.55]
[1734388237072,0.1849502,4037.3,4036.9,0.55]
[1734388237274,0.1849502,4037.2,4036.9,0.55]
[1734388237471,0.1849502,4037.1,4036.9,0.55]
[1734388237675,0.1849502,4037.0,4036.9,0.55]
[1734388244480,0.18535899,4037.0,4036.9,0.55]
[1734388245725,0.18535899,4037.0,4036.9,1.3063]
[1734388245877,1.03454948,4037.7,4036.9,1.3063]
[1734388246079,0.5232518,4037.6,4036.9,1.3063]
[1734388246293,0.18537807,4037.5,4036.9,1.3063]
[1734388246621,0.18537807,4037.4,4036.9,1.3063]
[1734388246781,0.18537807,4037.3,4036.9,1.3063]
[1734388246982,0.18537807,4037.2,4036.9,1.3063]
[1734388247215,0.18537807,4037.1,4036.9,1.3063]
[1734388247415,0.18537807,4037.0,4036.9,1.3063]
[1734388247791,4.81454094,4038.6,4037.2,0.7563]
[1734388247792,1.03454948,4038.2,4037.2,0.7563]
[1734388247991,1.03454948,4038.3,4037.5,0.55]
[1734388248224,2.30810357,4038.5,4037.5,0.55]
[1734388248431,3.17336779,4038.4,4037.5,3.55]
[1734388248743,3.17336779,4038.4,4037.5,0.55]
[1734388248906,0.59990097,4038.3,4037.5,0.55]
[1734388249389,2.30810357,4038.5,4037.5,0.55]
[1734388249588,3.17375656,4038.4,4037.5,3.55]
[1734388249814,0.85568283,4038.3,4037.5,0.55]
[1734388250016,2.30810357,4038.5,4037.5,0.55]
[1734388250240,2.13970648,4038.4,4037.1,1.3063]
[1734388250422,1.03454948,4038.5,4036.9,0.44966084]
[1734388250423,1.03454948,4038.5,4037.7,1.3063]
[1734388250607,1.03454948,4038.8,4037.9,3.55]
[1734388250943,1.03454948,4039.0,4038.3,0.55]
[1734388251139,1.55208786,4039.2,4038.3,0.55]
[1734388251140,1.03454948,4039.2,4038.3,0.55]
[1734388251309,3.71861545,4039.2,4038.3,0.55]
[1734388251494,0.8558905,4039.1,4038.3,0.55]
[1734388251694,1.5788892,4039.2,4038.3,0.55]
[1734388251894,0.8557972,4039.1,4038.3,0.55]
[1734388252134,0.85581919,4039.0,4038.3,0.55]
[1734388252339,1.03454948,4039.1,4038.3,0.55]
[1734388252634,0.54433972,4039.2,4038.3,0.55]
[1734388252635,0.85583348,4039.0,4038.3,0.55]
[1734388252805,1.5788892,4039.2,4038.3,0.55]
[1734388252989,2.1390672,4039.1,4038.3,0.55]
[1734388253191,0.85562688,4039.0,4038.3,0.55]
[1734388253414,1.5788892,4039.2,4038.3,0.55]
[1734388253612,0.85571041,4039.1,4038.3,0.55]
[1734388254838,0.54433972,4039.2,4038.3,0.55]
[1734388255011,0.7921,4039.3,4038.3,0.55]
[1734388255216,0.85522959,4039.2,4038.3,0.55]
[1734388255418,1.79714948,4039.6,4038.6,0.55]
[1734388255627,0.0772892,4040.3,4038.8,0.55]
[1734388255628,1.03454948,4039.7,4038.8,0.55]
[1734388255844,0.33492373,4039.7,4038.8,0.55]
[1734388256203,3.50647496,4039.7,4038.8,0.55]
[1734388256405,0.85480068,4039.6,4038.8,0.55]
[1734388256602,0.33492373,4039.7,4038.8,0.55]
[1734388256943,0.33492373,4039.7,4038.6,0.8101]
[1734388257163,1.79714948,4039.9,4038.7,0.55]
[1734388257314,0.85442323,4039.8,4039.1,0.55]
[1734388257523,0.7626,4039.9,4039.1,0.55]